[Event "89_| Campeonato Brasileiro 2023"]
[Site "Recife"]
[Date "2023.12.18"]
[Round "8.8"]
[White "Mekhitarian, Krikor Sevag"]
[Black "Gauche, Charles"]
[Result "1-0"]
[ECO "C62"]
[WhiteElo "2559"]
[BlackElo "2142"]
[PlyCount "73"]
[EventDate "2023.??.??"]
[EventCountry "BRA"]
[TimeControl "90+30"]
[WhiteClock "0:04:48"]
[BlackClock "0:32:06"]

{[%evp 18,73,73,23,32,23,32,32,40,37,45,29,39,44,63,59,66,51,73,70,120,87,137,
142,225,234,319,305,496,483,482,482,516,520,518,500,493,515,478,407,503,503,
499,502,547,545,555,553,585,569,623,617,665,615,677,658,703,667]} 1. e4 {
[%emt 0:00:00]} e5 {[%emt 0:00:00]} 2. Nf3 {[%emt 0:00:00]} Nc6 {[%emt 0:00:00]
} 3. Bb5 {[%emt 0:00:00]} Nf6 {[%emt 0:00:00]} 4. O-O {[%emt 0:00:00]} d6 {
[%emt 0:00:00]} 5. d4 {[%emt 0:00:00]} Bd7 {[%emt 0:00:00]} 6. Nc3 {[%emt 0:00:
00]} exd4 {[%emt 0:00:00]} 7. Nxd4 {[%emt 0:00:00]} Nxd4 {[%emt 0:00:00]} 8.
Bxd7+ {[%emt 0:00:00]} Qxd7 {[%emt 0:00:00]} 9. Qxd4 {[%emt 0:00:00]} Be7 {
[%emt 0:00:00]} 10. b3 {[%emt 0:00:00]} O-O {[%emt 0:00:00] C62: Ruy Lopez:
Steinitz Defence.} 11. Bb2 {[%emt 0:00:00]} c6 {[%emt 0:00:00]} 12. Rad1 {
[%emt 0:00:00]} Qe6 {[%emt 0:00:00] White is slightly better.} 13. Rfe1 {
[%emt 0:00:00]} Rfd8 {[%emt 0:00:00]} 14. h3 {[%emt 0:00:00]} Ne8 $146 {
[%emt 0:00:00]} ({Predecessor:} 14... a5 15. Qe3 h6 16. f4 b5 17. Qf3 Qd7 18.
e5 Qa7+ 19. Kh2 dxe5 20. fxe5 Qc7 21. Qg3 Nd5 22. Ne4 g6 23. c4 bxc4 24. bxc4
Nb6 25. Nd6 Rab8 26. Nxf7 {1-0 (26) Lukacs,A (1929)-Vitalyos,M (2076) Budapest
2018}) 15. f4 {[%emt 0:00:00]} Bf6 {[%emt 0:00:00]} 16. Qf2 {[%emt 0:00:00]}
Qe7 {[%emt 0:00:00]} 17. a4 {[%emt 0:00:00]} a5 {[%emt 0:00:00]} 18. Rd3 {
[%emt 0:00:00]} Qc7 {[%emt 0:00:00]} 19. Ba3 {[%emt 0:00:00]} Bxc3 {[%emt 0:00:
00]} 20. Rxc3 {[%emt 0:00:00]} Nf6 {[%eval 225,22] [%emt 0:00:00]} (20... Rd7
$16 {[%eval 142,27] was necessary.} 21. Bb2 Re7) 21. Rg3 $18 {[%emt 0:00:00]}
Kh8 {[%emt 0:00:00]} 22. Bb2 {[%emt 0:00:00] Strongly threatening Rxg7!} Qe7 $2
{[%eval 496,25] [%emt 0:00:00] [#]} (22... Rg8 {[%eval 305,27]} 23. e5 Nd5) 23.
Rxg7 $3 {[%emt 0:00:00][%mdl 512]} Kxg7 {[%emt 0:00:00]} 24. Qh4 {[%emt 0:00:
00] aiming for Qg5+.} h6 {[%emt 0:00:00] ...d5 is the strong threat.} 25. Re3 {
[%emt 0:00:00]} Rg8 {[%emt 0:00:00]} 26. Bxf6+ {[%emt 0:02:46]} Qxf6 {[%emt 0:
00:00]} 27. Rg3+ {[%emt 0:00:02]} Qg6 {[%emt 0:00:00]} 28. Rxg6+ {[%emt 0:05:
13]} fxg6 {[%emt 0:00:00][%mdl 4096] Endgame KQ-KRR} 29. Qe7+ {[%emt 0:00:07]
[%mdl 64] [#] Double Attack. White is clearly winning.} Kh8 {[%emt 0:00:00]}
30. Qxd6 {[%emt 0:00:30]} Rg7 {[%emt 0:00:00]} 31. e5 {[%emt 0:00:30]} Re8 {
[%emt 0:00:00]} 32. g4 {[%emt 0:00:30]} Kh7 {[%emt 0:00:00]} 33. e6 {[%emt 0:
00:30]} Rge7 {[%emt 0:00:00]} 34. f5 {[%emt 0:00:30] And now f6 would win.} h5
{[%emt 0:00:00]} 35. Kf2 {[%emt 0:00:30]} hxg4 {[%emt 0:00:00]} 36. hxg4 {
[%emt 0:03:34]} gxf5 {[%emt 0:00:00]} 37. gxf5 {[%emt 0:00:30] Accuracy: White
= 84%, Black = 27%.} 1-0

[Event "89_| Campeonato Brasileiro 2023"]
[Site "Recife"]
[Date "2023.12.19"]
[Round "9.1"]
[White "Supi, Luis Paulo"]
[Black "Quintiliano Pinto, Renato Rodrigues"]
[Result "1/2-1/2"]
[ECO "B92"]
[WhiteElo "2579"]
[BlackElo "2489"]
[PlyCount "78"]
[EventDate "2023.??.??"]
[EventCountry "BRA"]
[WhiteTeam "BRA"]
[BlackTeam "BRA"]
[TimeControl "90+30"]
[WhiteClock "0:09:42"]
[BlackClock "0:06:32"]

{[%evp 24,78,19,19,15,17,18,22,25,14,25,34,55,34,36,15,131,142,130,150,139,104,
100,7,2,0,9,0,0,0,0,0,0,0,0,0,0,0,0,-34,0,-4,0,-20,0,-3,0,-34,-35,-17,-20,-29,
-18,-27,-36,-55,0]} 1. e4 {[%emt 0:00:00]} c5 {[%emt 0:00:00]} 2. Nf3 {[%emt 0:
00:00]} d6 {[%emt 0:00:00]} 3. d4 {[%emt 0:00:00]} cxd4 {[%emt 0:00:00]} 4.
Nxd4 {[%emt 0:00:00]} Nf6 {[%emt 0:00:00]} 5. Nc3 {[%emt 0:00:00]} a6 {[%emt 0:
00:00]} 6. Be2 {[%emt 0:00:00]} e5 {[%emt 0:00:00]} 7. Nb3 {[%emt 0:00:00]} Be7
{[%emt 0:00:00]} 8. Be3 {[%emt 0:00:00]} Be6 {[%emt 0:00:00]} 9. Nd5 {[%emt 0:
00:00]} Nbd7 {[%emt 0:00:00]} 10. Qd3 {[%emt 0:00:00]} O-O {[%emt 0:00:00]} 11.
O-O {[%emt 0:00:00]} Bxd5 {[%emt 0:00:00]} 12. exd5 {[%emt 0:00:00]} Rc8 {
[%emt 0:00:00]} 13. c4 {[%emt 0:00:00]} a5 {[%emt 0:00:00] B92: Sicilian
Najdorf: 6 Be2.} 14. Kh1 {[%emt 0:00:00]} Re8 {[%emt 0:00:00]} 15. Rad1 {
[%emt 0:00:00]} Bf8 {[%emt 0:00:00] The position is equal.} 16. Nd2 {[%emt 0:
00:00]} g6 {[%emt 0:00:00]} 17. b3 {[%emt 0:00:00][%cal Bb2b3,Bb3b4][%mdl 32]}
Bg7 {[%emt 0:00:00]} 18. a3 {[%emt 0:00:00]} h5 {[%emt 0:00:00]} 19. b4 $146 {
[%emt 0:00:00]} ({Predecessor:} 19. f3 b6 20. b4 axb4 21. axb4 e4 22. fxe4 Ne5
23. Qb3 Neg4 24. Bg5 Qd7 25. Qb1 {1-0 (72) Short,N (2645)-Cheparinov,I (2713)
Wijk aan Zee 2008}) 19... Ng4 {[%eval 131,26] [%emt 0:00:00]} (19... axb4 $11 {
[%eval 15,30] remains equal.} 20. axb4 e4) 20. Bxg4 $1 $16 {[%emt 0:00:00]}
hxg4 {[%emt 0:00:00]} 21. Ne4 {[%emt 0:00:00]} Bf8 {[%emt 0:00:00]} 22. c5 {
[%emt 0:00:00] aiming for Bg5.} f5 {[%emt 0:00:00]} 23. Nxd6 {[%eval 7,31] 
[%emt 0:00:00]} (23. Ng5 $16 {[%eval 100,25]}) 23... Bxd6 $11 {[%emt 0:00:00]}
24. cxd6 {[%emt 0:00:00]} axb4 {[%emt 0:00:00]} 25. axb4 {[%emt 0:00:00]} Qf6 {
[%emt 0:00:00]} 26. Qb5 {[%emt 0:00:00]} Qxd6 {[%emt 0:00:00]} 27. Rc1 {
[%emt 0:00:00]} Rxc1 {[%emt 0:07:42]} 28. Rxc1 {[%emt 0:00:00]} Nf6 {[%emt 0:
00:24]} 29. Qxb7 {[%emt 0:00:00] [#] Black must now prevent Rc7.} Qxd5 {
[%emt 0:00:13]} 30. Qa6 {[%emt 0:00:00]} Rd8 {[%emt 0:02:14]} 31. Re1 {[%emt 0:
00:00]} (31. Qxf6 $2 {[#] gets mated.} Qd1+ $1 {[%mdl 512]} 32. Rxd1 Rxd1#)
31... Rd6 {[%emt 0:00:10]} 32. Qc8+ {[%emt 0:00:00]} Rd8 {[%emt 0:00:12]} 33.
Qa6 {[%emt 0:00:00]} Rd6 {[%emt 0:00:37]} 34. Qc8+ {[%emt 0:00:00]} Kf7 {
[%emt 0:01:32]} 35. Bc5 {[%emt 0:00:00]} Rd8 {[%emt 0:00:27]} 36. Qc7+ {
[%emt 0:00:00]} Rd7 {[%emt 0:00:07]} 37. Qb8 {[%emt 0:00:12]} Rd8 {[%emt 0:00:
35]} 38. Qc7+ {[%emt 0:07:16]} Rd7 {[%emt 0:00:07]} 39. Qb8 {[%emt 0:03:50]}
Rd8 {[%eval 0,62] [%emt 0:00:08] Accuracy: White = 60%, Black = 74%.} ({
Black should play} 39... f4 $1 $15 {[%eval -55,34]}) 1/2-1/2

[Event "89_| Campeonato Brasileiro 2023"]
[Site "Recife"]
[Date "2023.12.20"]
[Round "10.3"]
[White "Tomiello, Lucas Costamilan"]
[Black "Fier, Alexandr"]
[Result "1/2-1/2"]
[ECO "B15"]
[WhiteElo "2300"]
[BlackElo "2545"]
[PlyCount "116"]
[EventDate "2023.??.??"]
[EventCountry "BRA"]
[WhiteTeam "BRA"]
[BlackTeam "BRA"]
[TimeControl "90+30"]
[WhiteClock "0:03:45"]
[BlackClock "0:23:36"]

{[%evp 14,116,30,26,36,34,35,28,27,32,45,0,0,-47,-25,-55,-55,-131,-121,-109,
-101,-122,-84,-184,-191,-171,-132,-200,-71,-166,-157,-256,-119,-130,-89,-120,
-101,-91,-9,-3,0,-53,-62,-58,-33,-140,-17,-14,-14,-20,-15,-19,-10,-18,-12,-20,
0,0,0,0,0,0,0,0,0,0,0,0,0,0,0,0,0,0,0,0,0,0,0,0,0,-7,0,0,0,0,0,0,0,0,0,0,0,0,0,
0,0,0,0,0,0,0,0,0,0]} 1. e4 {[%emt 0:00:00]} c6 {[%emt 0:00:00]} 2. d4 {
[%emt 0:00:00]} d5 {[%emt 0:00:00]} 3. Nc3 {[%emt 0:00:00]} dxe4 {[%emt 0:00:
00]} 4. Nxe4 {[%emt 0:00:00]} Nf6 {[%emt 0:00:00]} 5. Nxf6+ {[%emt 0:00:00]}
exf6 {[%emt 0:00:00]} 6. c3 {[%emt 0:00:00]} Bd6 {[%emt 0:00:00]} 7. Bd3 {
[%emt 0:00:00]} O-O {[%emt 0:00:00]} 8. Qc2 {[%emt 0:00:00]} Re8+ {[%emt 0:00:
00] B15: Caro-Kann: 3 Nc3:3...g6 and 3...dxe4 4 Nxe4 Nf6 5 Nxf6+ exf6.} 9. Ne2
{[%emt 0:00:00]} h5 {[%emt 0:00:00]} 10. Be3 {[%emt 0:00:00]} Nd7 {[%emt 0:00:
00][%cal Bb8d7,Bd7b6,Bb6d5][%mdl 32] White has an edge.} 11. O-O-O {[%emt 0:00:
00]} b5 {[%emt 0:00:00][%cal Bb7b5,Bb5b4][%mdl 32] [#]} 12. Ng3 {[%eval 0,33] 
[%emt 0:00:00]} (12. d5 $1 $14 {[%eval 45,27][%mdl 512]}) 12... Nb6 $11 {
[%emt 0:00:00]} 13. Kb1 {[%eval -47,31] [%emt 0:00:00]} (13. Nxh5 $11 {[%eval
0,33]} Bg4 14. Ng3) 13... Nd5 $15 {[%emt 0:00:00]} 14. Bc1 {[%emt 0:00:00]} (
14. Nxh5 Bg4 $17) 14... Rb8 {[%emt 0:00:00]} 15. Ne4 $146 {[%eval -131,23] 
[%emt 0:00:00]} (15. Bd2 $15 {[%eval -55,28]}) ({Predecessor:} 15. Rde1 b4 16.
Rxe8+ Qxe8 17. Ne4 Bc7 18. Re1 Qd8 19. Qe2 bxc3 20. Qxh5 cxb2 21. Bd2 g6 22.
Qf3 Ba5 23. Bc2 Bxd2 24. Nxd2 Qa5 25. Re8+ Kg7 26. Nb3 Qa3 {0-1 (26) Toczek,G 
(2296)-Giri,A (2774) Terme Catez 2021}) 15... b4 $1 $17 {[%emt 0:00:00]} 16.
Nxd6 {[%emt 0:00:00]} Qxd6 {[%emt 0:00:00]} 17. Ka1 {[%emt 0:00:00]} Be6 {
[%emt 0:00:00]} 18. h3 {[%eval -184,25] [%emt 0:00:00]} (18. c4 $17 {[%eval
-84,28]} b3 19. Qd2 (19. axb3 $2 Nb4 $19)) 18... bxc3 $19 {[%emt 0:00:00]} 19.
bxc3 {[%emt 0:00:00]} Qc7 {[%emt 0:00:00]} 20. g4 {[%eval -200,23] [%emt 0:00:
00]} (20. Bd2 $17 {[%eval -132,33] might work better.}) 20... h4 {[%eval -71,
27] [%emt 0:00:00]} (20... c5 $1 $19 {[%eval -200,23] is more deadly.} 21. f4
Nxf4 22. Bxf4 Qxf4 {[%mdl 64] Double Attack}) 21. Rhe1 {[%eval -166,29] [%emt
0:00:00]} (21. g5 $17 {[%eval -71,27] was necessary.}) 21... c5 {[%emt 0:00:00]
} 22. Be3 {[%eval -256,27] [%emt 0:00:00]} (22. g5 $17 {[%eval -157,24]}) 22...
cxd4 {[%eval -119,29] [%emt 0:00:00]} (22... Qa5 $19 {[%eval -256,27] and
Black stays clearly on top.} 23. dxc5 Nxe3 24. Rxe3 Qxc5) 23. Bxd4 $17 {
[%emt 0:00:00]} Rec8 {[%eval -89,30] [%emt 0:00:00]} (23... Nf4 $142 {[%eval
-130,26]} 24. Bf1 Red8) 24. Bh7+ {[%emt 0:00:00]} Kh8 {[%emt 0:00:00][%cal
Rd5c3]} 25. Bf5 {[%emt 0:00:00] [#]} Bxf5 {[%eval -9,37] [%emt 0:00:00]} ({
Much worse is} 25... Nxc3 $6 26. Rc1 $11) (25... Nf4 $1 $17 {[%eval -91,26]})
26. gxf5 $11 {[%emt 0:00:00]} Qa5 {[%emt 0:00:00]} 27. Rb1 {[%eval -53,29] 
[%emt 0:00:00]} (27. Re4 $11 {[%eval 0,43]} Rc6 28. Rg1 (28. Rxh4+ Kg8 $15)
28... Nxc3 29. Bxc3 Rxc3 {[%mdl 64] Double Attack} 30. Qd2) 27... Rxb1+ $15 {
[%emt 0:00:00]} 28. Rxb1 {[%emt 0:00:00]} Ne7 {[%emt 0:00:00]} 29. Qd3 {
[%eval -140,29] [%emt 0:00:00]} (29. Qe2 $1 $15 {[%eval -33,31]} Nxf5 {[#]} 30.
Bxf6 $1 {[%mdl 512]} (30. Qh5+ Kg8 $17)) 29... Qxf5 {[%eval -17,31] [%emt 0:00:
00]} ({Black should try} 29... Kg8 $17 {[%eval -140,29]} 30. Rb7 Qxf5 31. Qxf5
Nxf5) 30. Qxf5 $11 {[%emt 0:00:00] The position is equal.} Nxf5 {[%emt 0:00:00]
} 31. Bxa7 {[%emt 0:00:00]} Rxc3 $17 {[%emt 0:00:00][%mdl 4096] Endgame KRB-KRN
} 32. Rb3 {[%emt 0:00:00]} Rc4 {[%emt 0:00:00]} 33. Kb2 {[%emt 0:00:00]} Kh7 {
[%emt 0:00:00]} 34. Rc3 {[%emt 0:00:36]} Ra4 {[%emt 0:00:00]} 35. Bc5 {[%emt 0:
00:37]} g5 {[%emt 0:00:00]} 36. Kb3 {[%emt 0:00:21]} Ra8 {[%emt 0:00:00]} 37.
a4 {[%emt 0:00:23][%cal Ba2a4,Ba4a5,Ba5a6,Ba6a7][%mdl 32]} Ng7 {[%emt 0:00:00]}
38. Bb6 {[%emt 0:01:50]} Ne6 {[%emt 0:00:00]} 39. a5 {[%emt 0:01:55]} f5 {
[%emt 0:00:00]} 40. Kb4 {[%emt 0:02:47]} Kg6 {[%emt 0:00:00]} 41. Kb5 {[%emt 0:
00:38]} g4 {[%emt 0:00:00]} 42. a6 {[%emt 0:00:27]} Ng5 {[%emt 0:00:00]} 43.
hxg4 {[%emt 0:02:33]} fxg4 {[%emt 0:00:00]} 44. a7 {[%emt 0:00:56]} Ne4 {
[%emt 0:00:00]} 45. Rc6+ {[%emt 0:01:02]} f6 {[%emt 0:00:00]} 46. Ka6 {[%emt 0:
02:27]} h3 {[%emt 0:00:00]} 47. Rc1 {[%emt 0:01:23]} Kg5 {[%emt 0:00:00]} 48.
Kb7 {[%emt 0:01:21]} Rxa7+ {[%emt 0:00:00]} 49. Bxa7 {[%emt 0:00:29]} Kf4 {
[%emt 0:00:00]} 50. Kc6 {[%emt 0:01:28]} Kf3 {[%emt 0:00:00]} 51. Kd5 {[%emt 0:
01:26]} Nxf2 {[%emt 0:00:00]} 52. Bb8 {[%emt 0:00:59]} f5 {[%emt 0:02:42]} 53.
Ke6 {[%emt 0:01:16]} Kg2 {[%emt 0:03:49]} 54. Kxf5 {[%emt 0:00:21]} h2 {
[%emt 0:00:04]} 55. Bxh2 {[%emt 0:00:26]} Kxh2 {[%emt 0:00:03]} 56. Rc8 {
[%emt 0:00:49]} g3 {[%emt 0:00:10]} 57. Rg8 {[%emt 0:00:09]} g2 {[%emt 0:00:04]
} 58. Rxg2+ {[%emt 0:00:06]} Kxg2 {[%emt 0:00:02] Accuracy: White = 73%, Black
= 74%.} 1/2-1/2

[Event "89_| Campeonato Brasileiro 2023"]
[Site "Recife"]
[Date "2023.12.20"]
[Round "10.4"]
[White "Mekhitarian, Krikor Sevag"]
[Black "Lima, Stefan Moisei VIeir"]
[Result "1-0"]
[ECO "A16"]
[WhiteElo "2559"]
[BlackElo "2155"]
[PlyCount "121"]
[EventDate "2023.??.??"]
[EventCountry "BRA"]
[WhiteTeam "BRA"]
[BlackTeam "BRA"]
[TimeControl "90+30"]
[WhiteClock "0:03:49"]
[BlackClock "0:01:42"]

{[%evp 9,121,30,43,36,84,66,80,47,54,-6,-3,-9,6,-12,-10,-51,21,22,34,21,46,51,
44,8,7,10,9,30,56,52,146,156,139,153,141,132,182,166,159,135,135,119,127,115,
134,138,146,143,144,142,144,124,172,146,139,112,157,161,189,174,181,164,256,
232,221,42,182,42,42,42,42,42,43,14,44,47,33,24,76,76,76,76,633,632,583,427,
792,710,724,721,722,716,710,700,687,632,640,577,853,845,3368,3370,3352,3232,
1097,789,29977,29980,29978,29979,29979,29980,29987,29988]} 1. Nf3 {[%emt 0:00:
00]} Nf6 {[%emt 0:00:00]} 2. c4 {[%emt 0:00:00]} g6 {[%emt 0:00:00]} 3. Nc3 {
[%emt 0:00:00]} d5 {[%emt 0:00:00]} 4. cxd5 {[%emt 0:00:00]} Nxd5 {[%emt 0:00:
00]} 5. h4 {[%emt 0:00:00]} Bg7 {[%emt 0:00:00]} 6. h5 {[%emt 0:00:00] A16:
English Opening: 1...Nf6 with ...d5.} O-O {[%eval 84,25] [%emt 0:00:00]} (6...
Nc6 $14 {[%eval 36,26]}) 7. hxg6 {[%emt 0:00:00]} hxg6 {[%emt 0:00:00]} 8. Qb3
{[%emt 0:00:00] White is better.} Nb6 {[%emt 0:00:00]} 9. g3 $146 {[%eval -6,
28] [%emt 0:00:00]} ({Better is} 9. d4 $14 {[%eval 54,22]}) ({Predecessor:} 9.
d4 Nc6 10. d5 Na5 11. Qb5 Nac4 12. e4 c6 13. Qc5 cxd5 14. exd5 Bf5 15. Qb4 {
0-1 (22) Glavina,P (2411)-Shahade,G (2476) Chess.com INT 2021}) 9... c5 $11 {
[%emt 0:00:00]} 10. d3 {[%emt 0:00:00]} Nc6 {[%emt 0:00:00]} 11. Bg2 {[%emt 0:
00:00]} Bg4 {[%emt 0:00:00]} 12. Be3 {[%eval -51,32] [%emt 0:00:00]} (12. Qd1
$11 {[%eval -10,33]}) 12... Bxf3 {[%eval 21,27] [%emt 0:00:00]} (12... Nd4 $1
$15 {[%eval -51,32]} 13. Bxd4 cxd4) 13. Bxf3 {[%emt 0:00:00]} Nd4 {[%emt 0:00:
00]} 14. Bxd4 $1 {[%emt 0:00:00]} Qxd4 {[%emt 0:00:00]} 15. Rh4 {[%emt 0:00:00]
} Qe5 {[%emt 0:00:00]} 16. a4 {[%emt 0:00:00][%cal Ba2a4,Ba4a5][%mdl 32]} Rab8
{[%emt 0:00:00]} 17. Re4 {[%emt 0:00:00]} Qg5 {[%emt 0:00:00]} 18. Rg4 $36 {
[%emt 0:00:00][%mdl 2048] White fights for an advantage.} Qe5 {[%emt 0:00:00]}
19. a5 {[%emt 0:00:00]} c4 {[%eval 146,29] [%emt 0:00:00]} (19... Nd7 $1 $14 {
[%eval 52,32]}) 20. Qb4 $16 {[%emt 0:00:00]} ({But not} 20. dxc4 $6 Nd7 $14)
20... Nc8 {[%emt 0:00:00]} 21. Rxc4 {[%emt 0:00:00]} Nd6 {[%emt 0:00:00]} 22.
Rc5 {[%emt 0:00:00]} Qd4 {[%eval 182,27] [%emt 0:00:00]} (22... Qe6 $16 {
[%eval 132,30]}) 23. Qxd4 {[%emt 0:00:00]} Bxd4 {[%emt 0:00:00]} 24. Rc7 {
[%emt 0:00:00]} Rfc8 {[%emt 0:00:00]} 25. Rxc8+ {[%emt 0:00:00]} Rxc8 {[%emt 0:
00:00]} 26. Ra3 {[%emt 0:00:00]} e6 {[%emt 0:00:00]} 27. e3 {[%emt 0:00:00]}
Bf6 {[%emt 0:00:00]} 28. Kd2 {[%emt 0:00:00]} Kf8 {[%emt 0:00:00]} 29. a6 {
[%emt 0:00:00]} b6 {[%emt 0:00:00]} 30. Ra4 {[%emt 0:00:45]} Bd8 {[%eval 172,
26] [%emt 0:00:00]} (30... Bxc3+ $16 {[%eval 124,32]} 31. bxc3 Rc5) 31. Rd4 {
[%emt 0:03:50]} Be7 {[%emt 0:00:00]} 32. Bg2 {[%emt 0:01:12]} Rc5 {[%eval 157,
25] [%emt 0:00:00]} (32... b5 $142 {[%eval 112,30]}) 33. Ra4 {[%emt 0:00:26]}
Nb5 {[%emt 0:00:00]} 34. d4 {[%emt 0:03:03]} Nxc3 {[%emt 0:00:00]} 35. bxc3 $18
{[%emt 0:00:05][%mdl 4096] Endgame KRB-KRB} Rc7 {[%eval 256,34] [%emt 0:00:04]}
(35... Rf5 {[%eval 164,35] keeps fighting.}) 36. Kd3 {[%emt 0:00:46]} Bd6 {
[%emt 0:01:42]} 37. Rc4 $2 {[%eval 42,54] [%emt 0:03:55]} (37. Ra1 $18 {
[%eval 221,27]}) 37... Ke7 {[%eval 182,30] [%emt 0:02:23] [#]} (37... Rxc4 $14
{[%eval 42,54]} 38. Kxc4 Ke7) 38. Rxc7+ {[%eval 42,55] [%emt 0:00:04]} ({
White has to play} 38. Ra4 $1 $18 {[%eval 182,30]}) 38... Bxc7 {[%emt 0:00:04]
KB-KB} 39. Kc4 {[%emt 0:00:04]} Kd6 {[%emt 0:02:12]} 40. Kb5 {[%emt 0:00:32]}
Bd8 {[%emt 0:01:05]} 41. e4 {[%emt 0:04:57]} g5 {[%emt 0:02:39]} 42. e5+ {
[%emt 0:00:06]} Kd7 {[%emt 0:00:48]} 43. Bh3 {[%emt 0:01:44]} f6 {[%eval 76,42]
[%emt 0:03:43] [#]} (43... Be7 $11 {[%eval 24,47] keeps the balance.}) 44. f4
$1 $16 {[%emt 0:00:31]} gxf4 {[%emt 0:03:24]} 45. gxf4 {[%emt 0:00:02] Hoping
for d5.} fxe5 $2 {[%eval 633,39] [%emt 0:01:53][%mdl 8192]} (45... f5 $16 {
[%eval 76,60]}) 46. fxe5 $18 {[%emt 0:00:05]} Bg5 {[%emt 0:01:25]} 47. Kc4 {
[%emt 0:02:14]} Bf4 {[%eval 792,33] [%emt 0:00:32]} (47... Ke7 $142 {[%eval
427,31]} 48. Kd3 b5) 48. Bg4 {[%emt 0:00:21]} Bg3 {[%emt 0:00:39]} 49. Bd1 {
[%emt 0:00:10]} Be1 {[%emt 0:01:26]} 50. Ba4+ {[%emt 0:00:02]} Ke7 {[%emt 0:01:
03]} 51. Kd3 {[%emt 0:00:13]} Bf2 {[%emt 0:00:21]} 52. Ke4 {[%emt 0:00:13]} Be1
{[%emt 0:00:37]} 53. c4 {[%emt 0:00:04][%cal Bc3c4,Bc4d5,Bd5d6][%mdl 32]} Bc3 {
[%emt 0:00:41]} 54. d5 {[%emt 0:00:11]} exd5+ {[%emt 0:00:22]} 55. cxd5 {
[%emt 0:00:04]} Bb4 {[%emt 0:01:16]} 56. Bb5 {[%emt 0:00:36]} Ba3 {[%emt 0:00:
11]} 57. Kd3 {[%emt 0:00:44]} Bb2 {[%emt 0:00:16]} 58. d6+ {[%emt 0:00:42]
White mates.} Ke6 {[%emt 0:00:35]} 59. Bc4+ {[%emt 0:00:04]} Kd7 {[%emt 0:00:
08]} 60. Ke4 {[%emt 0:00:09]} Kc6 {[%emt 0:00:19] [#]} 61. Bb5+ $1 {[%emt 0:00:
17][%mdl 576] Promotion. Accuracy: White = 75%, Black = 49%.} 1-0

[Event "89_| Campeonato Brasileiro 2023"]
[Site "Recife"]
[Date "2023.12.20"]
[Round "10.5"]
[White "Di Berardino, Diego Rafael"]
[Black "Pinheiro, Iung Alicio de O."]
[Result "1-0"]
[ECO "E48"]
[WhiteElo "2477"]
[BlackElo "2274"]
[PlyCount "69"]
[EventDate "2023.??.??"]
[EventCountry "BRA"]
[WhiteTeam "BRA"]
[BlackTeam "BRA"]
[TimeControl "90+30"]
[WhiteClock "0:08:41"]
[BlackClock "0:00:51"]

{[%evp 11,69,0,18,18,47,42,47,50,43,18,26,9,78,41,48,35,70,2,0,-33,-37,-42,-39,
-40,-37,-41,-3,-53,-26,-25,0,0,73,-27,136,139,144,139,135,139,141,157,147,0,0,
0,0,0,0,0,0,0,0,0,0,0,0,0,3761,-65]} 1. d4 {[%emt 0:00:00]} Nf6 {[%emt 0:00:00]
} 2. c4 {[%emt 0:00:00]} e6 {[%emt 0:00:00]} 3. Nc3 {[%emt 0:00:00]} Bb4 {
[%emt 0:00:00]} 4. e3 {[%emt 0:00:00]} O-O {[%emt 0:00:00]} 5. Bd3 {[%emt 0:00:
00]} d5 {[%emt 0:00:00]} 6. Nge2 {[%emt 0:00:00]} Re8 {[%emt 0:00:00]} 7. O-O {
[%emt 0:00:00] E48: Nimzo-Indian: Rubinstein: 5 Bd3 d5 including 6 Ne2, but
excluding 6 a3.} b6 {[%emt 0:00:00]} 8. e4 {[%emt 0:00:00]} dxe4 $1 {[%emt 0:
00:00]} 9. Nxe4 {[%emt 0:00:00] White is slightly better.} Nbd7 {[%emt 0:00:00]
} 10. Qc2 {[%emt 0:00:00]} Be7 {[%emt 0:00:00]} 11. c5 $146 {[%emt 0:00:00]} ({
Predecessor:} 11. b3 Bb7 12. Bb2 a5 13. N2c3 g6 14. Rad1 Bf8 15. Rfe1 Bg7 16.
a3 Nh5 17. Bf1 {1/2-1/2 (43) Kalogridis,A (2280)-Ioannidis,E (2500)
Thessaloniki 2022}) 11... Nf8 {[%eval 78,27] [%emt 0:00:00]} (11... a5 $11 {
[%eval 9,29] keeps the balance.}) 12. Rd1 {[%emt 0:00:00]} Nd5 $1 {[%emt 0:00:
00]} 13. a3 {[%emt 0:00:00]} a5 {[%emt 0:00:00]} 14. N2c3 {[%eval 2,28] [%emt
0:00:00]} (14. Bb5 $1 $14 {[%eval 70,27]}) 14... Ba6 $11 {[%emt 0:00:00]} 15.
Nb5 {[%emt 0:00:00]} f5 {[%emt 0:00:00]} 16. Ng3 {[%emt 0:00:00]} c6 {[%emt 0:
00:00]} 17. Nc3 {[%emt 0:00:00]} Bxd3 {[%emt 0:00:00]} 18. Rxd3 {[%emt 0:00:00]
} b5 {[%emt 0:00:00]} 19. Bd2 {[%eval -53,23] [%emt 0:00:00]} (19. Nxd5 $11 {
[%eval -3,31]} Qxd5 20. Bf4) 19... Ng6 {[%emt 0:00:00]} 20. Re1 {[%emt 0:00:00]
} a4 {[%emt 0:00:00]} (20... Bf6 {is more complex.} 21. Nh5 Ra7 22. Nxf6+ Nxf6
23. Bg5 h6) 21. Rxe6 {[%emt 0:00:00]} Ndf4 {[%eval 73,34] [%emt 0:00:00]} (
21... b4 $11 {[%eval 0,32] remains equal.} 22. Nxd5 (22. Nxa4 Ngf4 $15) 22...
Qxd5) 22. Rxg6 {[%eval -27,37] [%emt 0:00:00]} ({White should play} 22. Bxf4 $1
$16 {[%eval 73,34]} Nxf4 23. Rxc6) 22... Nxd3 $2 {[%eval 136,30] [%emt 0:00:00]
[#]} (22... Nxg6 $11 {[%eval -27,37]} 23. Nxf5 Qd7) 23. Rxg7+ $1 $16 {[%emt 0:
00:00][%mdl 512]} Kxg7 {[%emt 0:01:44]} 24. Nxf5+ {[%emt 0:00:00]} Kh8 {
[%emt 0:01:17]} 25. Qxd3 {[%emt 0:00:00]} Bxc5 {[%emt 0:00:30]} 26. Ne4 {
[%emt 0:00:00] Bc3 is the strong threat.} Bf8 {[%emt 0:00:30] [#]} 27. d5 {
[%eval 0,46] [%emt 0:00:00]} (27. Bc3 $1 $16 {[%eval 147,29]} Rxe4 28. Qxe4 (
28. d5+ Kg8 $11)) 27... Rxe4 $1 $11 {[%emt 0:00:30]} 28. Bc3+ {[%emt 0:02:14]}
Kg8 {[%emt 0:08:19]} 29. Qxe4 $40 {[%emt 0:00:05][%cal Re4e6][%mdl 128] White
mounts an attack.} Qxd5 {[%emt 0:01:04]} 30. Qg4+ {[%emt 0:00:30]} Kf7 {
[%emt 0:00:30]} 31. h4 {[%emt 0:00:30]} Ke8 {[%emt 0:00:30]} 32. Ne3 {[%emt 0:
05:50]} Qf7 {[%emt 0:01:45]} 33. Qe4+ {[%emt 0:00:30][%mdl 64] Double Attack}
Kd7 {[%emt 0:00:30]} 34. Ng4 $1 {[%emt 0:00:30][%cal Rg4e5] Hoping for Ne5+.}
Be7 $2 {[%eval 3761,26] [%emt 0:00:30][%mdl 8192]} (34... Bd6 $11 {[%eval 0,33]
}) 35. Ne3 $2 {[%eval -65,31] [%emt 0:00:10][%mdl 32768] Accuracy: White = 63%,
Black = 69%. . Loss on time!?} ({Only move:} 35. Ne5+ $18 {[%eval 3761,26]} Ke8
36. Qxc6+ {[%mdl 64] Double Attack} Kf8 37. Nxf7) 1-0